fUST/lending_fUST_20260129
["ID","MTS","AMOUNT","RATE_DAILY","PERIOD"]
[403971738,1769700644210,-274.41217385,0.000329,120]
[403971739,1769700644220,-299.96,0.000329,120]
[403971740,1769700644230,-1230.42922593,0.000329,120]
[403971741,1769700644240,-800.0,0.00032993,2]
[403971742,1769700644250,-357.8,0.00033,30]
[403971743,1769700644260,-1763.11221118,0.00033,4]
[403971744,1769700644270,-1146.97333925,0.00033,120]
[403971745,1769700644280,-2633.55329525,0.00033,14]
[403971746,1769700644289,-1345.65092736,0.000332,117]
[403971747,1769700644299,-1345.65092732,0.000332,117]
[403971748,1769700644310,-1345.65092732,0.000332,117]
[403971749,1769700644320,-342.15039306,0.00033261,30]
[403971750,1769700644329,-1581.2121073,0.000333,120]
[403971751,1769700644338,-2218.09,0.000333,30]
[403971752,1769700644348,-243.40260587,0.00033333,3]
[403971753,1769700644357,-800.0,0.00033457,2]
[403971754,1769700644367,-500.0,0.00033546,120]
[403971755,1769700644377,-500.0,0.00033546,120]
[403971756,1769700644386,-500.0,0.00033546,120]
[403971757,1769700644395,-500.0,0.00033546,120]
[403971758,1769700644405,-500.0,0.00033546,120]
[403971759,1769700644415,-500.0,0.00033546,120]
[403971760,1769700644424,-500.0,0.00033546,120]
[403971761,1769700644433,-500.0,0.00033546,120]
[403971762,1769700644443,-500.0,0.00033546,120]
[403971763,1769700644459,-500.0,0.00033546,120]
[403971764,1769700644468,-500.0,0.00033546,120]
[403971765,1769700644477,-500.0,0.00033546,120]
[403971766,1769700644486,-500.0,0.00033546,120]
[403971767,1769700644496,-500.0,0.00033546,120]
[403971768,1769700644506,-563.23,0.00033546,120]
[403971769,1769700644516,-6152.11152872,0.00033597,6]
[403971770,1769700644525,-6152.11152872,0.00033597,6]
[403971771,1769700644538,-6152.11152872,0.00033597,6]
[403971772,1769700644547,-6152.11152872,0.00033597,6]
[403971774,1769700644557,-6152.11152872,0.00033597,6]
[403971776,1769700644567,-1279.91,0.00033698,30]
[403971777,1769700644576,-2154.25,0.00033698,120]
[403971778,1769700644586,-217.43292674,0.00033733,2]
[403971780,1769700644596,-2150.0,0.00033776,2]
[403971781,1769700644606,-1369.0,0.00033776,2]
[403971782,1769700644616,-179.0,0.00033776,2]
[403971783,1769700644625,-418.0,0.00033776,2]
[403971784,1769700644635,-151664.51304407,0.0003381,7]
[403971787,1769700644658,-37908.87084157,0.0003381,7]
[403971789,1769700644670,-783.4944517,0.0003381,7]
[403971792,1769700644682,-856.0,0.0003381,7]
[403971795,1769700644715,-3704.05706188,0.0003381,7]
[403971798,1769700644730,-34229.91249096,0.0003381,7]
[403971800,1769700644741,-1921.4572425,0.0003381,7]
[403971802,1769700644753,-1057.29392811,0.0003381,7]
[403971804,1769700644764,-417.90244243,0.0003381,7]
[403971807,1769700644785,-878.79156715,0.0003381,7]
[403971809,1769700644796,-1233137.48704592,0.0003381,7]
[403971815,1769700644848,551.0,0.00029137,120]
[403971858,1769700645242,-303.289075,0.000249,7]
[403971860,1769700645252,-196.71144633,0.000319,10]
[403971864,1769700645263,-428.99354061,0.000319,10]
[403971867,1769700645275,-415.96167973,0.000319,10]
[403971871,1769700645284,-7329.7,0.00032877,10]
[403971874,1769700645293,-1345.65092732,0.000332,117]
[403971877,1769700645303,-72793.24816265,0.0003381,7]
[403971884,1769700645358,-266.481612,0.0003381,7]
[403971887,1769700645369,-21408.25,0.0003381,7]
[403971914,1769700645556,-250.0,0.00018283,2]
[403971917,1769700645566,-508.1504,0.00019178,2]
[403971920,1769700645575,-508.1504,0.00019589,3]
[403971923,1769700645585,-508.1504,0.0002,4]
[403971926,1769700645595,-551.0,0.00030593,120]
[403971929,1769700645604,-551.0,0.00032123,120]
[403971932,1769700645613,-13.5488,0.00033729,120]
[403971935,1769700645624,-537.4512,0.00033729,120]
[403971938,1769700645634,-47750.87060456,0.0003381,7]
[403971973,1769700646272,169.0,0.00029137,120]
[403971986,1769700646499,-2448.80596534,0.00017685,2]
[403972017,1769700646685,-2551.19403466,0.00017685,2]
[403972020,1769700646695,-1345.65092732,0.000338,119]
[403972021,1769700646709,-4660.82692821,0.0003381,7]
[403972290,1769700650214,-196.71144633,0.00017183,2]
[403972314,1769700654781,-831.10878033,0.00017011,2]
[403972330,1769700684734,-196.71144633,0.00010346,2]
[403972331,1769700688042,-831.10878033,0.00010346,2]
[403972369,1769700728316,-300.0,0.00010345,2]
[403972370,1769700728756,-199.10127413,0.00010346,2]
[403972371,1769700731712,-531.82,0.00010346,2]
[403972373,1769700733435,-156.65967262,0.00010346,2]
[403972374,1769700735378,-257.98034109,0.00010346,2]
[403972375,1769700736967,-444.48669006,0.00010346,2]
[403972378,1769700738449,-202.73255328,0.00010346,2]
[403972379,1769700741418,-232.20904471,0.00010346,2]
[403972381,1769700743786,-8270.27455454,0.00010346,2]
[403972382,1769700743910,-10000.01,0.00010346,2]
[403972383,1769700744073,-10000.01,0.00010346,2]
[403972384,1769700744113,-212.10815751,0.00010346,2]
[403972385,1769700744228,-10000.01,0.00010346,2]
[403972386,1769700744380,-10000.01,0.00010346,2]
[403972387,1769700747001,2024.98957589,0.00010346,2]
[403972388,1769700749933,-10000.01,0.00010346,2]
[403972389,1769700750075,-10000.01,0.00010346,2]
[403972390,1769700750312,-10000.01,0.00010346,2]
[403972391,1769700750430,-10000.01,0.00010346,2]
[403972392,1769700755854,-10000.01,0.00010346,2]
[403972393,1769700758392,3426.48270733,0.0001,2]
[403972394,1769700769134,798.0,0.0002849,120]
[403972395,1769700772135,202.0,0.0002849,120]
[403972396,1769700784717,459.49436388,0.00010345,2]
[403972397,1769700786426,278.42531921,0.00010345,2]
[403972398,1769700786461,400.71821644,0.00010345,2]
[403972399,1769700786498,500.0,0.00010345,2]
[403972400,1769700786531,500.0,0.00010345,2]
[403972401,1769700786693,300.94173191,0.00010345,2]
[403972402,1769700787644,248.34,9.9e-05,2]
[403972403,1769700793794,300.0,0.00010345,2]
[403972405,1769700847223,5000.0,0.00010346,2]
[403972407,1769700852565,300.0,0.00010345,2]
[403972409,1769700862705,4400.01,0.00010346,2]
[403972410,1769700862737,599.99,0.00010346,2]
[403972412,1769700870368,5000.0,0.00010346,2]
[403972415,1769700883199,500.0,0.00010345,2]
[403972416,1769700883237,500.0,0.00010345,2]
[403972417,1769700883275,500.0,0.00010345,2]
[403972418,1769700883311,500.0,0.00010345,2]
[403972419,1769700883344,500.0,0.00010345,2]
[403972420,1769700883382,500.0,0.00010345,2]
[403972421,1769700883421,284.00151196,0.00010345,2]
[403972422,1769700886595,1116.01848804,0.00010346,2]
[403972423,1769700886628,3883.98151196,0.00010346,2]
[403972424,1769700894299,5000.0,0.00010346,2]
[403972425,1769700901660,300.0,0.00010345,2]
[403972426,1769700903440,500.0,0.00010345,2]
[403972427,1769700903484,316.02848804,0.00010345,2]
[403972428,1769700903522,183.97151196,0.00010345,2]
[403972429,1769700903562,300.0,0.00010345,2]
[403972430,1769700903767,500.0,0.00010345,2]
[403972431,1769700903857,500.0,0.00010345,2]
[403972432,1769700903971,300.0,0.00010345,2]
[403972433,1769700904090,500.0,0.00010345,2]
[403972434,1769700904208,300.0,0.00010345,2]
[403972435,1769700904298,586.71812781,0.00010345,2]
[403972436,1769700904469,300.0,0.00010345,2]
[403972437,1769700909433,5000.0,0.00010346,2]
[403972438,1769700910657,1200.0,0.00010345,2]
[403972439,1769700913292,500.0,0.00010345,2]
[403972440,1769700913353,500.0,0.00010345,2]
[403972441,1769700913413,500.0,0.00010345,2]
[403972442,1769700913476,500.0,0.00010345,2]
[403972443,1769700913520,505.60136076,0.00010345,2]
[403972444,1769700917184,5000.0,0.00010346,2]
[403972445,1769700923302,500.0,0.00010345,2]
[403972446,1769700923346,500.0,0.00010345,2]
[403972447,1769700923380,500.0,0.00010345,2]
[403972448,1769700923418,500.0,0.00010345,2]
[403972449,1769700923454,461.01013974,0.00010345,2]
[403972450,1769700923489,563.28187219,0.00010345,2]
[403972451,1769700932394,5000.0,0.00010346,2]
[403972453,1769700941081,5000.0,0.00010346,2]
[403972456,1769700956101,5000.0,0.00010346,2]
[403972457,1769700962748,300.0,0.00010345,2]
[403972458,1769700963631,300.0,0.00010345,2]
[403972459,1769700964055,5000.0,0.00010346,2]
[403972461,1769700975745,2283.06717487,0.00010299,2]
[403972464,1769700979291,5000.0,0.00010346,2]
[403972467,1769700987146,5000.0,0.00010346,2]
[403972470,1769700999587,186.73775277,0.00010299,2]
[403972471,1769700999780,-823.41743018,0.00010346,2]
[403972472,1769701002444,-1100.0,0.00010346,2]
[403972473,1769701003023,5000.0,0.00010346,2]
[403972474,1769701005658,-334.17260999,0.00010346,2]
[403972475,1769701007851,-170.49490942,0.00010346,2]
[403972476,1769701009225,1176.9267584,0.0001033,2]
[403972477,1769701009329,-250.72573591,0.00010346,2]
[403972478,1769701011353,-154.08,0.00010346,2]
[403972479,1769701012099,5000.0,0.00010346,2]
[403972480,1769701014391,-389.13960131,0.00010346,2]
[403972481,1769701018292,-318.28285642,0.00010346,2]
[403972482,1769701019835,-243.45148074,0.00010346,2]
[403972483,1769701020477,5000.0,0.00010346,2]
[403972484,1769701021588,-154.08,0.00010346,2]
[403972486,1769701023200,300.0,0.00010345,2]
[403972487,1769701023235,-279.7754916,0.00010346,2]
[403972489,1769701025240,-512.61223158,0.00010346,2]
[403972490,1769701028539,4700.01,0.00010346,2]
[403972491,1769701029558,-290.30620169,0.00010346,2]
[403972492,1769701032158,-9.68379831,0.00010346,2]
[403972493,1769701032187,-275.22790684,0.00010346,2]
[403972494,1769701034351,-210.1384651,0.00010346,2]
[403972495,1769701036799,5000.0,0.00010346,2]
[403972497,1769701044640,5000.0,0.00010346,2]
[403972498,1769701052700,5000.0,0.00010346,2]
[403972499,1769701061347,5000.0,0.00010346,2]
[403972504,1769701069474,1539.63595232,0.00010346,2]
[403972511,1769701077295,5000.0,0.00010346,2]
[403972513,1769701080486,271.71,2.997e-05,2]
[403972514,1769701080773,271.71,2.997e-05,2]
[403972515,1769701081145,271.71,2.997e-05,2]
[403972516,1769701082814,300.0,0.00010345,2]
[403972517,1769701085322,2345.24404768,0.00010346,2]
[403972520,1769701090238,-2654.75595232,0.00010346,2]
[403972521,1769701094525,-297.40691964,0.00010346,2]
[403972522,1769701097144,-219.61789253,0.00010346,2]
[403972523,1769701100051,822.0,0.00034501,120]
[403972524,1769701100406,366.10617734,0.00034501,120]
[403972525,1769701100671,4690.49809536,0.00010346,2]
[403972526,1769701105597,-309.50190464,0.00010346,2]
[403972527,1769701107300,-195.82344673,0.00010346,2]
[403972528,1769701108647,5000.0,0.00010346,2]
[403972529,1769701110474,-721.13125365,0.00010346,2]
[403972530,1769701111986,-593.61301298,0.00010346,2]
[403972531,1769701115257,-151.7352067,0.00010346,2]
[403972532,1769701117486,-229.50827192,0.00010346,2]
[403972533,1769701120084,-174.4189176,0.00010346,2]
[403972534,1769701122338,-180.42655763,0.00010346,2]
[403972535,1769701123909,4381.00619072,0.00010346,2]
[403972536,1769701124200,-618.99380928,0.00010346,2]
[403972537,1769701124448,-158.60326111,0.00010346,2]
[403972538,1769701126431,-181.16819013,0.00010346,2]
[403972539,1769701128527,-220.02953689,0.00010346,2]
[403972540,1769701129965,-185.43998297,0.00010346,2]
[403972541,1769701131486,-293.23680122,0.00010346,2]
[403972542,1769701131715,5000.0,0.00010346,2]
[403972543,1769701133337,-155.67304187,0.00010346,2]
[403972544,1769701136247,-419.57344237,0.00010346,2]
[403972545,1769701138388,-282.43345785,0.00010346,2]
[403972546,1769701142668,300.0,0.00010345,2]
[403972553,1769701147043,5000.0,0.00010346,2]
[403972555,1769701154854,5000.0,0.00010346,2]
[403972556,1769701160970,440.73461117,0.00010345,2]
[403972557,1769701167399,321.64605471,0.00010345,2]
[403972558,1769701170113,5000.0,0.00010346,2]
[403972559,1769701174385,170.87,0.000103,2]
[403972560,1769701174895,350.0,0.00010345,2]
[403972561,1769701177857,477.83293356,0.00010346,2]
[403972563,1769701192868,5000.0,0.00010346,2]
[403972564,1769701202109,300.0,0.00010345,2]
[403972565,1769701202700,300.0,0.00010345,2]
[403972566,1769701203693,300.0,0.00010345,2]
[403972567,1769701204681,150.61,0.000103,2]
[403972568,1769701205339,565.0,0.00010346,2]
[403972569,1769701205391,150.61,0.000103,2]
[403972570,1769701206030,150.61,0.000103,2]
[403972571,1769701210361,1200.0,0.00010345,2]
[403972573,1769701215470,5000.0,0.00010346,2]
[403972574,1769701215664,150.61,0.000103,2]
[403972575,1769701216252,150.61,0.000103,2]
[403972576,1769701216876,150.61,0.000103,2]
[403972577,1769701217505,150.61,0.000103,2]
[403972578,1769701218154,150.61,0.000103,2]
[403972579,1769701218788,150.61,0.000103,2]
[403972580,1769701219323,150.61,0.000103,2]
[403972581,1769701219983,150.61,0.000103,2]
[403972582,1769701220518,150.61,0.000103,2]
[403972583,1769701223314,4632.70554622,0.00010346,2]
[403972584,1769701225331,-947.22352103,0.00010346,2]
[403972588,1769701229718,150.61,0.000103,2]
[403972589,1769701231035,150.61,0.000103,2]
[403972590,1769701231699,150.61,0.000103,2]
[403972591,1769701232231,150.61,0.000103,2]
[403972592,1769701232884,150.61,0.000103,2]
[403972593,1769701233426,150.61,0.000103,2]
[403972594,1769701234007,150.61,0.000103,2]
[403972595,1769701234683,150.61,0.000103,2]
[403972596,1769701235353,150.61,0.000103,2]
[403972597,1769701236014,150.61,0.000103,2]
[403972598,1769701236531,150.61,0.000103,2]
[403972599,1769701237109,150.61,0.000103,2]
[403972600,1769701237647,150.61,0.000103,2]
[403972601,1769701238505,5000.0,0.00010346,2]
[403972602,1769701261757,5000.0,0.00010346,2]
[403972605,1769701263211,300.0,0.00010345,2]
[403972611,1769701263692,867459.94388095,0.00010246,2]
[403972612,1769701263729,1000000.0,0.00010246,2]
[403972613,1769701263765,532540.05611905,0.00010246,2]
[403972614,1769701284396,5000.0,0.0001034,2]
[403972617,1769701307601,5000.0,0.0001034,2]
[403972619,1769701330526,0.01,0.0001034,2]
[403972620,1769701330559,4999.99,0.0001034,2]
[403972632,1769701338905,2748.53307058,0.0001034,2]
[403972635,1769701354592,2251.48692942,0.0001034,2]
[403972636,1769701354625,2748.51307058,0.0001034,2]
[403972637,1769701357148,-235.9014135,0.00010407,2]
[403972638,1769701357173,-1051.65651821,0.00010415,2]
[403972643,1769701361102,-302.0,0.00010415,2]
[403972646,1769701362379,2251.46692942,0.0001034,2]
[403972649,1769701364108,-168.19511653,0.00010415,2]
[403972653,1769701368088,-387.70554622,0.00010415,2]
[403972654,1769701379017,5000.0,0.0001034,2]
[403972658,1769701402011,5000.0,0.0001034,2]
[403972667,1769701417831,455208.47695153,0.00010246,2]
[403972670,1769701437974,-300.0,0.00010144,2]
[403972672,1769701449802,-300.0,0.00010143,2]
[403972673,1769701449831,-539.02393686,0.00010144,2]
[403972674,1769701451826,-355.64752824,0.00010144,2]
[403972675,1769701453291,-312.55588447,0.00010144,2]
[403972676,1769701454681,-721.37183512,0.00010144,2]
[403972677,1769701457887,-152.31562534,0.00010144,2]
[403972679,1769701460986,-1000.0,0.00027369,30]
[403972680,1769701461037,-1000.0,0.00027369,30]
[403972681,1769701461269,-1000.0,0.00027369,30]
[403972682,1769701461308,-715.0,0.00027369,30]
[403972683,1769701461346,-183.0,0.00029315,33]
[403972684,1769701461382,-500.0,0.00029863,60]
[403972685,1769701461419,-150.02158472,0.00029863,60]
[403972686,1769701461457,-201.4653447,0.00029863,60]
[403972687,1769701461494,-284.23301321,0.00029863,60]
[403972688,1769701461531,-500.0,0.0003,60]
[403972689,1769701461568,-269.63216851,0.0003,60]
[403972690,1769701461608,-151.0647238,0.0003,60]
[403972691,1769701461653,-1000.0,0.00030106,30]
[403972692,1769701461694,-1000.0,0.00030106,30]
[403972693,1769701461733,-1000.0,0.00030106,30]
[403972694,1769701461768,-500.0,0.00030137,60]
[403972695,1769701461803,-231.517554,0.00030137,60]
[403972696,1769701461837,-200.0,0.00030137,60]
[403972697,1769701461871,-500.0,0.00030274,60]
[403972698,1769701461904,-202.15271456,0.00030274,60]
[403972699,1769701461936,-250.0,0.00030548,60]
[403972700,1769701461973,-169.0,0.00030593,120]
[403972701,1769701462009,-207.6781998,0.00031,120]
[403972702,1769701462044,-208.43322926,0.00031,120]
[403972703,1769701462080,-206.71743825,0.00031,120]
[403972704,1769701462122,-182.94144923,0.00031,120]
[403972705,1769701462157,-199.97333333,0.00031,120]
[403972706,1769701462194,-492.17169037,0.00031,120]
[403972707,1769701462230,-1928.01321852,0.00031,120]
[403972708,1769701462265,-1284.85576491,0.00031,120]
[403972709,1769701462299,-50830.448666,0.00031,60]
[403972710,1769701462333,-35581.314066,0.00031,30]
[403972711,1769701462367,-1041.66666667,0.00031,30]
[403972712,1769701462402,-190.54759786,0.00031,120]
[403972713,1769701462434,-176.13181645,0.00031,120]
[403972714,1769701462468,-207.6781998,0.000319,120]
[403972715,1769701462500,-208.43322926,0.000319,120]
[403972716,1769701462532,-206.71743825,0.000319,120]
[403972717,1769701462565,-182.94144923,0.000319,120]
[403972718,1769701462597,-199.97333333,0.000319,120]
[403972719,1769701462629,-492.17169037,0.000319,120]
[403972720,1769701462665,-1928.01321852,0.000319,120]
[403972721,1769701462705,-1284.85576491,0.000319,120]
[403972722,1769701462739,-190.54759786,0.000319,120]
[403972723,1769701462772,-1000.0,0.00032,120]
[403972724,1769701462806,-1041.66666667,0.00032,120]
[403972725,1769701462841,-160.0,0.00032,120]
[403972726,1769701462874,-169.0,0.00032123,120]
[403972727,1769701462908,-2154.25,0.00032602,120]
[403972728,1769701462942,-167.0,0.00032603,54]
[403972729,1769701462976,-2231.54685662,0.00032773,30]
[403972730,1769701463013,-182.94144923,0.000329,120]
[403972731,1769701463051,-199.97333333,0.000329,120]
[403972732,1769701463086,-492.17169037,0.000329,120]
[403972733,1769701463122,-1928.01321852,0.000329,120]
[403972734,1769701463158,-1284.85576491,0.000329,120]
[403972735,1769701463196,-1000.0,0.00033,120]
[403972736,1769701463235,-2218.09,0.00033,30]
[403972737,1769701463274,-10166.089733,0.0003348,60]
[403972738,1769701463310,-1279.91,0.00033698,30]
[403972739,1769701463350,-2154.25,0.00033698,120]
[403972740,1769701463390,-169.0,0.00033729,120]
[403972741,1769701463428,-507.25697116,0.0003379,30]
[403972742,1769701463467,-500.0,0.00033795,120]
[403972743,1769701463507,-500.0,0.00033795,120]
[403972744,1769701463546,-500.0,0.00033795,120]
[403972745,1769701463585,-500.0,0.00033795,120]
[403972746,1769701463625,-500.0,0.00033795,120]
[403972747,1769701463663,-500.0,0.00033795,120]
[403972748,1769701463701,-500.0,0.00033795,120]
[403972749,1769701463740,-500.0,0.00033795,120]
[403972750,1769701463780,-500.0,0.00033795,120]
[403972751,1769701463821,-500.0,0.00033795,120]
[403972752,1769701463861,-500.0,0.00033795,120]
[403972753,1769701463904,-500.0,0.00033795,120]
[403972754,1769701463944,-500.0,0.00033795,120]
[403972755,1769701463983,-563.23,0.00033795,120]
[403972756,1769701464137,-500.0,0.00033795,120]
[403972757,1769701464184,-185.4706062,0.0003389,30]
[403972758,1769701464223,-194.7135632,0.0003389,30]
[403972759,1769701464263,-623.2480812,0.0003389,30]
[403972760,1769701464302,-492.17169037,0.000339,120]
[403972761,1769701464340,-1928.01321852,0.000339,120]
[403972762,1769701464381,-1284.85576491,0.000339,120]
[403972763,1769701464418,-11842.48813515,0.00034,30]
[403972764,1769701464456,-194.34816365,0.00034,120]
[403972765,1769701464492,-1000.0,0.00034,120]
[403972766,1769701464528,-1041.66666667,0.00034,30]
[403972767,1769701464564,-3933.68533001,0.00034246,120]
[403972768,1769701464599,-1279.91,0.00034246,31]
[403972769,1769701464638,-173.0,0.00034292,120]
[403972770,1769701464677,-745.44846666,0.00034407,120]
[403972771,1769701464714,-158.0,0.00034467,120]
[403972772,1769701464749,-2304.7,0.00034501,120]
[403972773,1769701464785,-151.0,0.00034501,31]
[403972774,1769701464821,-151.0,0.00034501,31]
[403972775,1769701464857,-151.839013,0.00034501,31]
[403972776,1769701464897,-157.882246,0.00034501,31]
[403972777,1769701464934,-151.0,0.00034501,31]
[403972778,1769701464972,-151.0,0.00034501,31]
[403972779,1769701465008,-151.0,0.00034501,31]
[403972780,1769701465047,-284.641838,0.00034501,31]
[403972781,1769701465085,-151.0,0.00034501,31]
[403972782,1769701465123,-151.0,0.00034501,31]
[403972783,1769701465160,-151.0,0.00034501,31]
[403972784,1769701465198,-151.0,0.00034501,31]
[403972785,1769701465235,-151.0,0.00034501,31]
[403972786,1769701465274,-151.0,0.00034501,31]
[403972787,1769701465313,-151.0,0.00034501,31]
[403972788,1769701465351,-151.0,0.00034501,31]
[403972789,1769701465390,-151.0,0.00034501,31]
[403972790,1769701465427,-151.0,0.00034501,31]
[403972791,1769701465463,-151.0,0.00034501,31]
[403972792,1769701465500,-151.0,0.00034501,31]
[403972793,1769701465538,-151.0,0.00034501,31]
[403972794,1769701465575,-151.0,0.00034501,31]
[403972795,1769701465611,-151.0,0.00034501,31]
[403972796,1769701465654,-151.0,0.00034501,31]
[403972797,1769701465693,-151.0,0.00034501,31]
[403972798,1769701465730,-151.0,0.00034501,31]
[403972799,1769701465768,-161.000592,0.00034501,31]
[403972800,1769701465806,-250.508705,0.00034501,31]
[403972801,1769701465844,-151.0,0.00034501,31]
[403972802,1769701465881,-178.741046,0.00034501,31]
[403972803,1769701465921,-1801.647305,0.00034501,31]
[403972804,1769701465959,-1801.647305,0.00034501,31]
[403972805,1769701466000,-1801.647305,0.00034501,31]
[403972806,1769701466037,-1801.647305,0.00034501,31]
[403972807,1769701466076,-1801.647305,0.00034501,31]
[403972808,1769701466117,-1801.647305,0.00034501,31]
[403972809,1769701466157,-1801.647305,0.00034501,31]
[403972810,1769701466195,-1801.647305,0.00034501,31]
[403972811,1769701466232,-1801.647305,0.00034501,31]
[403972812,1769701466268,-1801.647305,0.00034501,31]
[403972813,1769701466307,-1801.647305,0.00034501,31]
[403972814,1769701466345,-1801.647305,0.00034501,31]
[403972815,1769701466382,-1801.647305,0.00034501,31]
[403972816,1769701466419,-1801.647305,0.00034501,31]
[403972817,1769701466456,-1801.647305,0.00034501,31]
[403972818,1769701466495,-1801.647305,0.00034501,31]
[403972819,1769701466532,-1801.647305,0.00034501,31]
[403972820,1769701466570,-151.0,0.00034501,31]
[403972821,1769701466601,-1801.647305,0.00034501,31]
[403972822,1769701466635,-151.0,0.00034501,31]
[403972823,1769701466669,-151.0,0.00034501,31]
[403972824,1769701466706,-1801.647305,0.00034501,31]
[403972825,1769701466747,-151.0,0.00034501,31]
[403972826,1769701466785,-1801.647302,0.00034501,31]
[403972827,1769701466822,-151.0,0.00034501,31]
[403972828,1769701466859,-151.0,0.00034501,31]
[403972829,1769701466897,-159.363395,0.00034501,31]
[403972830,1769701466932,-154.580377,0.00034501,31]
[403972831,1769701466969,-151.0,0.00034501,31]
[403972832,1769701467008,-151.0,0.00034501,31]
[403972833,1769701467046,-151.0,0.00034501,31]
[403972834,1769701467083,-151.0,0.00034501,31]
[403972835,1769701467122,-151.0,0.00034501,31]
[403972836,1769701467307,-151.0,0.00034501,31]
[403972837,1769701467347,-151.0,0.00034501,31]
[403972838,1769701467385,-151.0,0.00034501,31]
[403972839,1769701467423,-151.0,0.00034501,31]
[403972840,1769701467461,-151.0,0.00034501,31]
[403972841,1769701467498,-155.095472,0.00034501,31]
[403972842,1769701467536,-151.0,0.00034501,31]
[403972843,1769701467573,-151.0,0.00034501,31]
[403972844,1769701467612,-151.0,0.00034501,31]
[403972845,1769701467654,-183.424009,0.00034501,31]
[403972846,1769701467691,-183.424009,0.00034501,31]
[403972847,1769701467728,-183.424009,0.00034501,31]
[403972848,1769701467764,-183.424009,0.00034501,31]
[403972849,1769701467802,-183.424009,0.00034501,31]
[403972850,1769701467840,-183.424009,0.00034501,31]
[403972851,1769701467881,-183.424009,0.00034501,31]
[403972852,1769701467923,-183.424009,0.00034501,31]
[403972853,1769701467963,-183.424009,0.00034501,31]
[403972854,1769701468001,-183.424009,0.00034501,31]
[403972855,1769701468037,-183.424009,0.00034501,31]
[403972856,1769701468075,-183.424009,0.00034501,31]
[403972857,1769701468114,-183.424009,0.00034501,31]
[403972858,1769701468157,-183.424009,0.00034501,31]
[403972859,1769701468195,-183.424009,0.00034501,31]
[403972860,1769701468234,-183.424009,0.00034501,31]
[403972861,1769701468272,-183.424009,0.00034501,31]
[403972862,1769701468310,-183.424009,0.00034501,31]
[403972863,1769701468347,-183.424009,0.00034501,31]
[403972864,1769701468385,-183.424005,0.00034501,31]
[403972865,1769701468422,-151.0,0.00034501,31]
[403972866,1769701468459,-151.0,0.00034501,31]
[403972867,1769701468495,-151.0,0.00034501,31]
[403972868,1769701468531,-151.0,0.00034501,31]
[403972869,1769701468568,-151.0,0.00034501,31]
[403972870,1769701468605,-151.0,0.00034501,31]
[403972871,1769701468643,-255.681272,0.00034501,31]
[403972872,1769701468679,-151.0,0.00034501,31]
[403972873,1769701468716,-151.0,0.00034501,31]
[403972874,1769701468754,-153.920681,0.00034501,31]
[403972875,1769701468791,-151.0,0.00034501,31]
[403972876,1769701468828,-151.0,0.00034501,31]
[403972877,1769701468870,-200.0,0.0003451,38]
[403972878,1769701468907,-1000.0,0.00034544,120]
[403972879,1769701468994,-151.551054,0.00034544,31]
[403972880,1769701469033,-151.0,0.00034544,31]
[403972881,1769701469070,-151.0,0.00034544,31]
[403972882,1769701469109,-151.0,0.00034544,31]
[403972883,1769701469150,-374.412979,0.00034544,31]